Cogmind - Beta 14 @@@ ROGUE MODE // 2025.03.24 @ 02:56:39 Player: ochotona_princeps Result: Self-destructed Performance ------------- Evolutions (1) 500 Regions Visited (2) 400 Robots Destroyed (13) 65 Value Destroyed (192) 192 Prototype IDs (2) 40 Alien Tech Used (0) 0 Bonus (0) 0 TOTAL SCORE: 1197 Bonus ------- None Cogmind --------- Core Integrity 154/400 Matter 165/300 Energy 96/100 System Corruption 0% Temperature Cool (18) Movement Core (50) Location -9/Materials Parts ------- > --- POWER (1) -------- (None) > --- PROPULSION (2) --- (None) > --- UTILITY (4) ------ Visual Processing Unit Signal Interpreter Utility Shielding > --- WEAPON (2) ------- Mining Claw > --- INVENTORY (5) ---- Aluminum Leg Sensor Array Mining Claw Peak State ------------ > --- POWER ------------ Light Nuclear Core > --- PROPULSION ------- Wheel Compact Wheel > --- UTILITY ---------- Visual Processing Unit Sensor Array Signal Interpreter Utility Shielding > --- WEAPON ----------- Grenade Launcher Plasma Cutter > --- INVENTORY -------- Sensor Array Grenade Launcher Mining Claw Mining Claw [Rating: 13] Favorites ----------- Power Light Nuclear Core Engine Light Ion Engine Power Core Light Nuclear Core Propulsion Wheel Wheel Wheel Utility Sensor Array Device Sensor Array Processor Visual Processing Unit Protection Utility Shielding Weapon Grenade Launcher Energy Gun EM Pulse Gun Ballistic Gun Light Assault Rifle Launcher Grenade Launcher Special Weapon Plasma Cutter Slashing Weapon Mining Claw Build | -11 -10 -9 ------- Run | Yrd Mat Mat Slots Evolved 2 | . . 2 Power . | . . . Propulsion . | . . . Utility 2 | . . 2 Weapon . | . . . Parts Attached 18 | 5 7 6 Power 2 | 1 1 . Engine 1 | 1 . . Core 1 | . 1 . Reactor . | . . . Propulsion 2 | 2 . . Treads . | . . . Leg . | . . . Wheel 2 | 2 . . Hover . | . . . Flight . | . . . Utility 5 | . 3 2 Device 1 | . 1 . Storage . | . . . Processor 2 | . 1 1 Hackware . | . . . Protection 2 | . 1 1 Artifact . | . . . Weapon 9 | 2 3 4 Energy Gun 1 | 1 . . Energy Cannon . | . . . Ballistic Gun 1 | 1 . . Ballistic Cannon . | . . . Launcher 3 | . 2 1 Special Weapon 1 | . . 1 Impact Weapon . | . . . Slashing Weapon 3 | . 1 2 Piercing Weapon . | . . . Special Melee Weapon . | . . . Unidentified Prototypes . | . . . Parts Lost 7 | . . 7 Power 1 | . . 1 Propulsion 2 | . . 2 Utility 1 | . . 1 Weapon 3 | . . 3 Highest Loss Streak 7 | . . 7 To Critical Strikes . | . . . Average Slot Usage (%) 88 | . 88 88 Engine 2 | . 3 . Core 10 | . 10 9 Wheel 26 | . 28 20 Device 9 | . 8 10 Processor 6 | . 2 21 Protection 6 | . 4 11 Energy Gun 6 | . 7 . Ballistic Gun 4 | . 5 . Launcher 7 | . 7 7 Slashing Weapon 6 | . 6 6 Peak Build Rating 13 | 5 10 13 Average Rating 8 | 3 7 10 On Entrance 5 | . 5 10 Naked Turns . | . . . Heaviest Build 12 | 6 12 12 Greatest Support 26 | 26 26 26 Greatest Overweight (x) . | . . . Average Overweight (x) . | . . . Largest Inventory Capacity 5 | 5 5 5 Average Capacity 5 | 5 5 5 Most Carried 5 | 1 5 4 Average Carried 2 | . 3 3 Final Capacity 5 | 5 5 5 Final Carried 5 | 1 5 3 Class Distribution -------------------- 90% | Mutant 9% | Assassin Dominant Class ---------------- Mutant | -10/Materials Assassin | -9/Materials Resources | -11 -10 -9 ----------- Run | Yrd Mat Mat Matter Collected 328 | 140 188 . Remotely . | . . . Salvage Created 400 | . 400 . Parts 30 | . 30 . Haulers Intercepted 2 | . 2 . Recyclers Shooed 1 | . . 1 Parts Field Recycled . | . . . Retrieved Matter . | . . . Parts Self-Destructed . | . . . Prevented . | . . . Kills | -11 -10 -9 ------- Run | Yrd Mat Mat Combat Hostiles Destroyed 6 | . 6 . Guns 3 | . 3 . AOE 3 | . 3 . Classes Destroyed 7 | . 7 . Worker 1 | . 1 . Builder 2 | . 2 . Hauler 2 | . 2 . Recycler 1 | . 1 . Watcher 1 | . 1 . Swarmer 3 | . 3 . Grunt 3 | . 3 . Best Kill Streak 6 | . 6 . Combat Bots Only 3 | . 3 . Max Kills in Single Turn 2 | . 2 . Gunslinging . | . . . Exploded 1 | . 1 . Melee . | . . . Uniques/NPCs Destroyed . | . . . Combat | -11 -10 -9 -------- Run | Yrd Mat Mat Hostile Shots Fired 79 | . 25 54 Missed 24 | . 11 13 Damage Taken 705 | . 170 535 Core 266 | . 20 246 Absorbed by Shields . | . . . Redirected to Shielding 9 | . 1 8 Core Remaining (%) 96 | 100 92 . Volleys Fired 42 | . 32 10 Largest 2 | . 2 1 Hottest 60 | . 60 30 Shots Fired 60 | . 50 10 Gun 43 | . 43 . Cannon . | . . . Launcher 10 | . 7 3 Special 7 | . . 7 Kinetic 18 | . 18 . Thermal 7 | . . 7 Explosive 10 | . 7 3 Electromagnetic 25 | . 25 . Robot Hit Streak 5 | . 5 2 Robot Miss Streak 4 | . 4 1 Penetration Max . | . . . Secondary Targets . | . . . Shots Hit Robots 38 | . 28 10 Core Hits 26 | . 21 5 Critical Kills . | . . . Critical Parts Destroyed . | . . . Critical Strikes 2 | . 1 1 Corrupt 1 | . 1 . Sever 1 | . . 1 Melee Attacks 11 | . 4 7 Impact . | . . . Slashing 11 | . 4 7 Piercing . | . . . Sneak Attacks . | . . . Combat Hostiles . | . . . Follow-up Attacks . | . . . Damage Inflicted 878 | . 705 173 Guns 289 | . 289 . Cannons . | . . . Explosions 404 | . 364 40 Melee 145 | . 52 93 Ramming . | . . . Kinetic 70 | . 70 . Thermal 80 | . 40 40 Explosive 364 | . 324 40 Electromagnetic 219 | . 219 . Impact . | . . . Slashing 145 | . 52 93 Piercing . | . . . Highest Corruption . | . . . Average Corruption . | . . . Corruption Purged . | . . . Corruption Blocked . | . . . Overload Shots . | . . . Overflow Damage 44 | . 44 . Projectiles . | . . . Explosions 44 | . 44 . Melee . | . . . Knockbacks . | . . . Impact . | . . . Kinetic . | . . . Secondary . | . . . Self-Inflicted Damage 24 | . 24 . Shots 1 | . 1 . Rammed . | . . . Targets Rammed . | . . . Kicked . | . . . Crushed . | . . . Highest Temperature 76 | . 76 14 Average Temperature 24 | . 25 7 Received Heat Transfer 333 | . 54 279 Siege Activations . | . . . Robots Corrupted . | . . . Combat Hostiles . | . . . Parts Fried 1 | . 1 . Impact Corruptions . | . . . Robots Melted . | . . . Combat Hostiles . | . . . Parts Melted 1 | . 1 . Heat Transferred 198 | . 50 148 Parts Sabotaged . | . . . Parts Stolen . | . . . Parts Stripped . | . . . Power Chain Reactions 1 | . 1 . Alert | -11 -10 -9 ------- Run | Yrd Mat Mat Peak Influence 241 | . 241 61 Initial 40 | . . 40 Average 85 | . 102 42 Maximum Alert Level 1 | . 1 . Low Security (%) 98 | 100 98 100 Level 1 1 | . 1 . Level 2 . | . . . Level 3 . | . . . Level 4 . | . . . Level 5 . | . . . High Security . | . . . Max Security . | . . . Squads Dispatched 2 | . 1 1 Investigation 1 | . 1 . Extermination . | . . . Reinforcement 1 | . . 1 Assault . | . . . Garrison . | . . . Intercept . | . . . Searches Triggered . | . . . Construction Impeded . | . . . Haulers Reinforced . | . . . Active Scanning Responses . | . . . Cargo Convoy Interrupts . | . . . Stealth | -11 -10 -9 --------- Run | Yrd Mat Mat Distress Signals 1 | . 1 . Communications Jammed . | . . . Distress Signals . | . . . Times Spotted 20 | . 11 9 Peak Tracking Total 7 | . 3 7 Tactical Retreats 3 | . 1 2 Traps | -11 -10 -9 ------- Run | Yrd Mat Mat Traps Triggered . | . . . Indirectly . | . . . Trap Hack Attempts . | . . . Triggered . | . . . Disarmed . | . . . Reprogrammed . | . . . Reused . | . . . Traps Extracted . | . . . Installed . | . . . Triggered . | . . . Machines | -11 -10 -9 ---------- Run | Yrd Mat Mat Machines Disabled 1 | . 1 . Max in Single Turn 1 | . 1 . Machines Repaired . | . . . Machines Dismantled . | . . . Machines Sabotaged . | . . . Overloaded Fab Kills . | . . . Hacking | -11 -10 -9 --------- Run | Yrd Mat Mat Machines Accessed 3 | . 3 . Terminals 3 | . 3 . Fabricators . | . . . Repair Stations . | . . . Recycling Units . | . . . Scanalyzers . | . . . Garrison Access . | . . . Total Hacks 9 | . 9 . Successful 4 | . 4 . Failed 5 | . 5 . Catastrophic . | . . . Database Lockouts . | . . . Manual 7 | . 7 . Terminals 9 | . 9 . Fabricators . | . . . Repair Stations . | . . . Recycling Units . | . . . Scanalyzers . | . . . Garrison Access . | . . . Terminal Hacks 2 | . 2 . Prototype ID Bank 1 | . 1 . Terminal Index 1 | . 1 . Fabricator Hacks . | . . . Repair Station Hacks . | . . . Recycling Unit Hacks . | . . . Scanalyzer . | . . . Garrison Access Hacks . | . . . Unauthorized Hacks 2 | . 2 . Terminals 2 | . 2 . Assimilate 1 | . 1 . Operators 1 | . 1 . Fabricators . | . . . Repair Stations . | . . . Recycling Units . | . . . Scanalyzers . | . . . Garrison Access . | . . . Data Cores Recovered . | . . . Used . | . . . Hacking Detections 3 | . 3 . Full Trace Events 1 | . 1 . Feedback Events . | . . . Feedback Blocked . | . . . Robot Schematics Acquired . | . . . Robots Built . | . . . Authchips . | . . . Time . | . . . Total Robot Build Rating . | . . . Part Schematics Acquired . | . . . Parts Built . | . . . Authchips . | . . . Time . | . . . Total Part Build Rating . | . . . Parts Repaired . | . . . Time . | . . . Parts Recycled . | . . . Recycled Matter . | . . . Retrieved Matter . | . . . Retrieved Components . | . . . Parts Scanalyzed . | . . . Part Schematics Acquired . | . . . Parts Damaged . | . . . Bothacking | -11 -10 -9 ------------ Run | Yrd Mat Mat Used RIF Installer . | . . . Robots Hacked . | . . . Non-combat . | . . . Combat . | . . . Robot Hacks Applied . | . . . Relay Couplers Released . | . . . Fabnet Peak Effective % . | . . . Robots Rewired . | . . . Allies Hacked . | . . . Hacks Repelled . | . . . Allies | -11 -10 -9 -------- Run | Yrd Mat Mat Total Allies 1 | . 1 . Largest Group 1 | . 1 1 Highest-Rated Group 10 | . 10 10 Highest-Rated Ally 10 | . 10 10 Total Orders . | . . . Ally Attacks . | . . . Total Damage . | . . . Kills . | . . . Allies Corrupted . | . . . Allies Melted . | . . . Intel | -11 -10 -9 ------- Run | Yrd Mat Mat Robot Analysis Total . | . . . Derelict Logs Recovered . | . . . Drone Launches . | . . . Drone Recoveries . | . . . Exploration | -11 -10 -9 ------------- Run | Yrd Mat Mat Turns Passed 676 | 40 518 118 Spaces Moved 517 | 42 410 65 Core 14 | 14 . . Treads . | . . . Legs . | . . . Wheels 503 | 28 410 65 Hover . | . . . Flight . | . . . Fastest Speed 50 | 50 90 90 Average Speed 88 | 76 90 90 Slowest Speed 90 | 90 90 90 Overloaded Moves . | . . . Propulsion Burnouts . | . . . Robots Hopped . | . . . Cave-ins Triggered . | . . . Exploration Rate (%) 25 | 4 65 8 Regions Visited 2 Branch Regions . Pre-discovered Areas . | . . . Known Exits Taken . | . . . Unknown Exits Taken 2 | 1 1 . Scrap Searched . | . . . Spaces Dug 6 | . 1 5 Terrain Destroyed 47 | . 35 12 Melee 2 | . 1 1 Projectile . | . . . AOE 45 | . 34 11 Terrain Rammed . | . . . Walls Destroyed . | . . . Machines Disabled . | . . . Actions | -11 -10 -9 --------- Run | Yrd Mat Mat Total 642 | 47 502 93 Wait 42 | . 38 4 Move 515 | 41 409 65 Hop . | . . . Pick Up 9 | 1 8 . Fast Attach 8 | 5 2 1 Attach 4 | . . 4 Detach 1 | . . 1 Swap 6 | . 5 1 Drop 4 | . 4 . Fire 42 | . 32 10 Melee 11 | . 4 7 Ram . | . . . Kick . | . . . Crush . | . . . Escape Stasis . | . . . Rewire . | . . . Trap . | . . . Miscellaneous . | . . . Route ------- -11/Scrapyard -10/Materials (discovered 3 exits: [*Mat] / [*Min x2]) -9/Materials History --------- Turn | Location | Event 3 | -11/Scrapyard | Discovered new exit (range 16) 41 | -11/Scrapyard | Entered Materials 302 | -10/Materials | Discovered new exit (range 13) 317 | -10/Materials | Build established: Mutant 487 | -10/Materials | Discovered new exit (range 16) 521 | -10/Materials | Discovered new exit (range 13) 559 | -10/Materials | Entered another Materials area 559 | -9/Materials | Accompanied by 1 ally 559 | -9/Materials | Evolved 2 slots: Utility x2 675 | -9/Materials | Core integrity fell below 50% 677 | -9/Materials | Self-destructed Last Messages --------------- 00521_ EXIT=FOUND PARAMETERS=UTILITY+2 LOCATION=UNKNOWN GOAL=ESCAPE 00586_ Technician 1a destroyed. 00619_ Acquired Plasma Cutter. 00626_ Critical hit (Burn: +37). 00629_ Grenade Launcher destroyed. 00641_ G-34 Mercenary Aluminum Leg severed. 00648_ Plasma Cutter destroyed. 00656_ Critical hit (Burn: +37). 00656_ Lgt. Nuclear Core destroyed. 00663_ ALERT: Hostiles spotted, dispatching reinforcements to Terminal M004. 00664_ Wheel destroyed. 00665_ Com. Wheel destroyed. 00665_ Sensor Array destroyed. 00671_ Critical hit (Burn: +37). 00672_ Grenade Launcher destroyed. 00674_ G-34 Mercenary Aluminum Leg ripped off. Map ----- +----------------------------------------------------+ | ??????????????????????????????????????? | | ??????????????????????????????????????? | | ??????????????????????????????????????? | | ??????????????????????????????????????? | | ??????????????????????????????????????? | | ??????????????????????????????????????? | | ??????????????????????????????????????? | | ??????????????????????????????????????? | | ?????????????? ?????????????????????? | | ?????????????? ????????????????????? | | ?????????????? ????????????????????? | | ?????????????? "??? #???????????????? | | ?????????????# """ #???????????????? | | ????????????? """ ###?????????????? | | ????????????? ??????????????? | | ????????????? ???????????????? | | ????????????? Y #???????????????? | | ????????????## Y +#???????????????? | | ????????????# g ##??????????????? | | ????????????# #??????????????? | | ????????????# #??????????????? | | ????????????# #???????????????? | | ????????????# #???????????????? | | ???????#????# #???????????????? | | ???????? ???# #???????????????? | | ????????# ??# @= #???????????????? | | ????????# ?###g#######???????????????? | | ???????## #### #?????????????????????? | | ???????+ #######???????????????? | | ???????## +???????????????? | | ????????#+###### ####???????????????? | | ???????????????# #??????????????????? | | ???????????????# #######????????????? | | ???????????????# ????? | | ???????????????# #######????????????? | | ???????????????# #??????????????????? | | ???????????????# #??????????????????? | | ???????????????# #??????????????????? | | ???????????????# #??????????????????? | | ???????????????# #??????????????????? | | ???????????????# #??????????????????? | | ???????????????# #??????????????????? | | ???????????????# #??????????????????? | | ???????????????# #??????????????????? | | ???????????##### #??????????????????? | | ???????????# #??????????????????? | | ???????????# #??????????????????? | | ???????????# #??????????????????? | | ???????????####/#####?????????????????? | | ???????????# #?????????????????? | +----------------------------------------------------+ Best States ------------- Heat Dissipation 28 Energy Generation 14 Energy Capacity 160 Matter Stores 300 Matter Capacity 300 Sight Range 18 Robot Scan Range 14 Terrain Scan Density 10 Utility Shielding 33 Evasion (%) 50 Item Schematics ----------------- None Robot Schematics ------------------ None Fabricated ------------ Nothing Alien Tech Used ----------------- None Achievements -------------- None Challenges ------------ None Game ------ Seed KineticDynamicNullifier Manual? 0 Play Time 00:10:04 Cumulative 190.9 hours Start 2025.03.24 @ 02:46:07 End 2025.03.24 @ 02:56:39 Sessions 1 Manual Loads 0 Difficulty Rogue Special Mode None Game No. 186 Rogue 125 Adventurer 61 Explorer 0 Win Type - Total 9 Types 7/0/2/0/0/0/0/0/0 Lore% 30 Gallery% 63 Achievement% 60 Wizard Run 0 Options --------- Layout 1 ASCII 0 Keyboard 0 Movement Numpad Keybinds 0 Fullscreen 2 Font 32/SmallcapsGlow Map View 50x35 Zoom Use 0% Tactical HUD 1 Map Filters NONE Filters NONE Steam 1 RUN: e4d5d938-500f-4e5c-9e01-e4a278404d7a